bitfinex/quotes_BTCUSD_20240729
["timestamp","ask_amount","ask_price","bid_price","bid_amount"]
[1722251966235,1.42789935,69958.0,69957.0,0.06769]
[1722251966439,1.43681403,69958.0,69957.0,0.06769]
[1722251966595,1.45925194,69958.0,69957.0,0.06769]
[1722251967019,1.23054394,69958.0,69957.0,0.06769]
[1722251968557,0.33868816,69958.0,69957.0,0.06769]
[1722251968714,0.6593576,69958.0,69957.0,0.06769]
[1722251969082,0.65044417,69958.0,69957.0,0.06769]
[1722251969232,0.65935753,69958.0,69957.0,0.06769]
[1722251969637,0.65044417,69958.0,69957.0,0.06769]
[1722251969804,0.45303913,69958.0,69957.0,0.06769]
[1722251970006,0.44412546,69958.0,69957.0,0.06769]
[1722251970221,0.45303938,69958.0,69957.0,0.06769]
[1722251970629,0.33868538,69958.0,69957.0,0.06769]
[1722251971251,0.31629609,69958.0,69957.0,0.06769]
[1722251971474,0.17028217,69958.0,69957.0,0.06769]
[1722251971912,0.17028217,69958.0,69957.0,0.068614]
[1722251972126,0.07443791,69958.0,69957.0,0.068614]
[1722251972332,0.07527791,69958.0,69957.0,0.068614]
[1722251972746,0.17112217,69958.0,69957.0,0.068614]
[1722251972965,0.25272217,69958.0,69957.0,0.068614]
[1722251973166,0.25272217,69958.0,69957.0,0.062614]
[1722251973376,0.25272217,69958.0,69957.0,0.053614]
[1722251973621,0.25272217,69958.0,69957.0,0.066614]
[1722251974205,0.27511057,69958.0,69957.0,0.066614]
[1722251974429,0.28402409,69958.0,69957.0,0.066614]
[1722251974798,0.28402409,69958.0,69957.0,0.073614]
[1722251975141,0.28402409,69958.0,69957.0,0.066614]
[1722251975544,0.28202409,69958.0,69957.0,0.066614]
[1722251975724,0.28402409,69958.0,69957.0,0.066614]
[1722251975937,0.27511057,69958.0,69957.0,0.066614]
[1722251976136,0.28402408,69958.0,69957.0,0.066614]
[1722251976317,0.28402408,69958.0,69957.0,0.072614]
[1722251977175,0.28402408,69958.0,69957.0,0.059614]
[1722251977981,0.28402408,69958.0,69957.0,0.065614]
[1722251978605,0.28402408,69958.0,69957.0,0.053614]
[1722251978806,0.28402408,69958.0,69957.0,0.058614]
[1722251979011,0.10457982,69958.0,69957.0,0.207014]
[1722251979166,0.10457982,69958.0,69957.0,0.778791]
[1722251979167,0.04566631,69958.0,69957.0,0.778791]
[1722251979548,0.07327791,69958.0,69957.0,0.063614]
[1722251980511,0.05084,69958.0,69957.0,0.063614]
[1722251981659,0.05084,69958.0,69957.0,0.058614]
[1722251982041,0.05084,69958.0,69957.0,0.063614]
[1722251982569,0.05084,69958.0,69957.0,0.058614]
[1722251983014,0.05084,69958.0,69957.0,0.053614]
[1722251983435,0.05084,69958.0,69957.0,0.058614]
[1722251983640,0.05284,69958.0,69957.0,0.058614]
[1722251983830,0.07527407,69958.0,69957.0,0.053614]
[1722251984040,0.07327407,69958.0,69957.0,0.067614]
[1722251984354,0.16911833,69958.0,69957.0,0.067614]
[1722251984557,0.17111833,69958.0,69957.0,0.067614]
[1722251985023,0.19350466,69958.0,69957.0,0.067614]
[1722251985335,0.19350466,69958.0,69957.0,0.081614]
[1722251985530,0.18350466,69958.0,69957.0,0.081614]
[1722251985908,0.52656666,69958.0,69957.0,0.081614]
[1722251986293,0.52656666,69958.0,69957.0,0.067614]
[1722251986751,0.0448204,69958.0,69957.0,0.145414]
[1722251986935,0.02243407,69958.0,69957.0,0.337869]
[1722251987135,0.02243407,69958.0,69957.0,0.55358]
[1722251987309,0.02243407,69958.0,69957.0,0.324869]
[1722251987515,0.02243407,69958.0,69957.0,0.337869]
[1722251987725,0.02243407,69958.0,69957.0,0.55258]
[1722251987926,0.02243407,69958.0,69957.0,0.56558]
[1722251988149,0.04084,69961.0,69960.0,0.114351]
[1722251988347,0.04084,69961.0,69960.0,0.343053]
[1722251988548,0.04084,69961.0,69960.0,1.090835]
[1722251988759,0.04084,69961.0,69960.0,0.633431]
[1722251989009,0.04084,69961.0,69960.0,0.862133]
[1722251989324,0.04084,69961.0,69960.0,0.633431]
[1722251989695,0.04084,69961.0,69960.0,0.642431]
[1722251990008,0.04084,69961.0,69960.0,0.782031]
[1722251990247,0.04012356,69970.0,69969.0,0.114336]
[1722251990446,0.04012356,69973.0,69969.0,0.51904]
[1722251990667,0.04012356,69973.0,69972.0,0.342993]
[1722251990870,0.04012356,69973.0,69972.0,1.155085]
[1722251991083,0.02242969,69973.0,69972.0,0.926423]
[1722251991286,0.06255325,69973.0,69972.0,0.926423]
[1722251991692,0.06255325,69973.0,69972.0,0.697761]
[1722251991904,0.06255325,69973.0,69972.0,0.58343]
[1722251992109,0.04012356,69973.0,69972.0,0.58343]
[1722251992320,0.04012356,69973.0,69972.0,0.51903]
[1722251995025,0.04012356,69973.0,69972.0,0.52803]
[1722251995674,0.06255264,69973.0,69972.0,0.52803]
[1722251995878,0.04012356,69973.0,69972.0,0.52803]
[1722251996113,1.05768269,69973.0,69972.0,0.52803]
[1722251996324,0.51042057,69973.0,69972.0,0.52803]
[1722251996559,0.60236469,69973.0,69972.0,0.52803]
[1722251996759,0.39576469,69973.0,69972.0,0.52803]
[1722251997170,0.64680788,69973.0,69972.0,0.52803]
[1722251997378,0.30181988,69973.0,69972.0,0.52803]
[1722251997579,0.30181988,69973.0,69972.0,0.51903]
[1722251997580,0.24141988,69973.0,69972.0,0.51903]
[1722251997804,0.58440788,69973.0,69972.0,0.51903]
[1722251998239,0.58540788,69973.0,69972.0,0.51903]
[1722251998454,0.58440788,69973.0,69972.0,0.51903]
[1722251998652,0.58440788,69973.0,69972.0,0.52203]
[1722251999196,0.60683976,69973.0,69972.0,0.52203]
[1722251999537,0.60683976,69973.0,69972.0,0.51903]
[1722251999538,1.44788895,69973.0,69972.0,0.51903]
[1722251999739,1.44913054,69973.0,69972.0,0.51903]
[1722252000579,1.42669866,69973.0,69972.0,0.51903]
[1722252000950,1.33512588,69973.0,69972.0,0.51903]
[1722252001328,1.33512588,69973.0,69972.0,0.52803]
[1722252001528,1.56378488,69973.0,69972.0,0.52803]
[1722252001740,1.56378488,69973.0,69972.0,0.53603]
[1722252001986,1.58965959,69973.0,69972.0,0.53603]
[1722252002180,1.73275898,69973.0,69972.0,0.53603]
[1722252002975,1.70688427,69973.0,69972.0,0.53603]
[1722252003177,1.10552588,69973.0,69972.0,0.53603]
[1722252003423,0.87686688,69973.0,69972.0,0.53603]
[1722252003707,0.15881988,69973.0,69972.0,0.53603]
[1722252003916,0.08693939,69973.0,69972.0,0.53603]
[1722252004118,0.0625552,69973.0,69972.0,0.67603]
[1722252004731,0.0653952,69973.0,69972.0,0.60093]
[1722252005685,0.0653952,69973.0,69972.0,0.53603]
[1722252006888,0.27403633,69973.0,69972.0,0.53603]
[1722252007100,0.50269533,69973.0,69972.0,0.53603]
[1722252007273,0.75373738,69973.0,69972.0,0.53603]
[1722252007420,0.52507838,69973.0,69972.0,0.53603]
[1722252007865,0.18209038,69973.0,69972.0,0.53603]
[1722252008068,0.29641938,69973.0,69972.0,0.53603]
[1722252008312,0.18209038,69973.0,69972.0,0.53603]
[1722252008718,0.15965874,69973.0,69972.0,0.53603]
[1722252008871,0.13727569,69973.0,69972.0,0.53603]
[1722252009084,0.04096356,69973.0,69972.0,0.53603]
[1722252009293,0.04096356,69973.0,69972.0,0.67813]
[1722252010793,0.04096356,69973.0,69972.0,0.792461]
[1722252012134,0.04096356,69973.0,69972.0,0.67813]
[1722252012339,0.04096356,69973.0,69972.0,0.792461]
[1722252012706,0.04096356,69973.0,69972.0,0.67813]
[1722252014248,0.06339086,69973.0,69972.0,0.67813]
[1722252014615,0.04096356,69973.0,69972.0,0.67813]
[1722252014832,0.13066889,69980.0,69974.0,0.0754]
[1722252015033,0.06406889,69980.0,69979.0,0.47916]
[1722252015217,0.06406889,69980.0,69979.0,0.0754]
[1722252015218,0.10419245,69980.0,69979.0,0.0754]
[1722252015490,0.10619245,69980.0,69979.0,0.519]
[1722252015853,0.22051045,69980.0,69979.0,0.519]
[1722252016265,0.3141078,69980.0,69979.0,0.519]
[1722252016413,0.56517239,69980.0,69979.0,0.519]
[1722252016619,0.33653639,69980.0,69979.0,0.519]
[1722252016801,0.58755431,69980.0,69979.0,0.519]
[1722252017000,0.81619031,69980.0,69979.0,0.519]
[1722252017252,0.88219031,69980.0,69979.0,0.519]
[1722252018114,0.85976172,69980.0,69979.0,0.519]
[1722252018764,0.85976172,69980.0,69979.0,0.533]
[1722252019405,0.99339265,69980.0,69979.0,0.533]
[1722252020039,0.99339265,69980.0,69979.0,0.519]
[1722252020040,1.2494926,69980.0,69979.0,0.519]
[1722252020239,1.37089132,69980.0,69979.0,0.523]
[1722252020464,1.26389772,69980.0,69979.0,0.523]
[1722252021111,1.31389772,69980.0,69979.0,0.523]
[1722252021348,1.42942909,69980.0,69979.0,0.523]
[1722252021485,1.45699711,69980.0,69979.0,0.537]
[1722252021688,1.45699711,69980.0,69979.0,0.533]
[1722252021895,1.45699711,69980.0,69979.0,0.519]
[1722252022094,1.45699711,69980.0,69979.0,0.521]
[1722252022496,1.40699711,69980.0,69979.0,0.521]
[1722252023068,1.03526172,69980.0,69979.0,0.521]
[1722252023268,1.26389772,69980.0,69979.0,0.52]
[1722252023485,1.03526172,69980.0,69979.0,0.519]
[1722252023688,1.14430982,69980.0,69979.0,0.519]
[1722252023916,1.03726172,69980.0,69979.0,0.519]
[1722252024364,1.14430982,69980.0,69979.0,0.519]
[1722252024594,1.26589772,69980.0,69979.0,0.519]
[1722252024748,1.03726172,69980.0,69979.0,0.519]
[1722252025150,1.05969367,69980.0,69979.0,0.519]
[1722252026086,1.03726172,69980.0,69979.0,0.519]
[1722252026554,1.03826172,69980.0,69979.0,0.519]
[1722252026778,1.03626172,69980.0,69979.0,0.519]
[1722252027003,1.47954066,69980.0,69979.0,0.519]
[1722252027226,1.25090466,69980.0,69979.0,0.519]
[1722252027440,1.10780527,69980.0,69979.0,0.519]
[1722252027666,1.33644127,69980.0,69979.0,0.519]
[1722252027870,1.10780527,69980.0,69979.0,0.519]
[1722252028164,1.33644127,69980.0,69979.0,0.519]
[1722252028375,1.10780527,69980.0,69979.0,0.519]
[1722252028582,1.03626172,69980.0,69979.0,0.519]
[1722252029872,1.30660321,69980.0,69979.0,0.519]
[1722252030553,1.45660321,69980.0,69979.0,0.519]
[1722252030803,0.19012356,69971.0,69957.0,0.000924]
[1722252031021,0.343062,69958.0,69957.0,0.000924]
[1722252031232,0.04012356,69958.0,69957.0,0.148224]
[1722252031609,0.04012356,69958.0,69957.0,0.262579]
[1722252031835,0.04012356,69958.0,69957.0,0.148224]
[1722252031952,0.04012356,69958.0,69957.0,0.49129]
[1722252032150,0.2066,69974.0,69958.0,0.343061]
[1722252032151,0.04012356,69959.0,69958.0,0.343061]
[1722252033525,0.04012356,69959.0,69958.0,0.357061]
[1722252033721,0.06255699,69959.0,69958.0,0.357061]
[1722252034132,0.04012356,69959.0,69958.0,0.357061]
[1722252035184,0.04012356,69959.0,69958.0,0.371061]
[1722252035567,0.04012356,69959.0,69958.0,0.357061]
[1722252036022,0.04012356,69959.0,69958.0,0.371061]
[1722252036358,0.04212356,69959.0,69958.0,0.028]
[1722252036551,0.04212356,69959.0,69958.0,0.128354]
[1722252036726,0.04212356,69959.0,69958.0,0.142354]
[1722252037136,0.04212356,69959.0,69958.0,0.371062]
[1722252037338,0.06455699,69959.0,69958.0,0.371062]
[1722252037747,0.06255699,69959.0,69958.0,0.371062]
[1722252038413,0.06255699,69959.0,69958.0,0.59977]
[1722252038580,0.04012356,69959.0,69958.0,0.59977]
[1722252038782,0.04012356,69959.0,69958.0,0.600694]
[1722252038989,0.06255662,69959.0,69958.0,0.600694]
[1722252039354,0.06255662,69959.0,69958.0,0.371986]
[1722252039973,0.06455662,69959.0,69958.0,0.028924]
[1722252040344,0.16029872,69959.0,69958.0,0.028924]
[1722252040543,0.18251859,69959.0,69958.0,0.028924]
[1722252040763,0.3005964,69959.0,69958.0,0.028924]
[1722252040963,0.28017565,69959.0,69958.0,0.028924]
[1722252041160,0.28017565,69959.0,69958.0,0.014924]
[1722252041497,0.28017565,69959.0,69958.0,0.028924]
[1722252041498,0.39452765,69959.0,69958.0,0.028924]
[1722252041728,0.39452765,69959.0,69958.0,0.014924]
[1722252041955,0.39452765,69959.0,69958.0,0.000924]
[1722252042192,0.39452765,69959.0,69958.0,0.014924]
[1722252042655,0.62323265,69959.0,69958.0,0.000924]
[1722252043105,0.85193765,69959.0,69958.0,0.005924]
[1722252043709,0.93764447,69959.0,69958.0,0.005924]
[1722252044070,0.91521141,69959.0,69958.0,0.000924]
[1722252044273,1.05820959,69959.0,69958.0,0.000924]
[1722252044702,1.22351641,69959.0,69958.0,0.000924]
[1722252044959,1.24494312,69959.0,69958.0,0.000924]
[1722252045082,1.18780959,69959.0,69958.0,1.000924]
[1722252045297,1.30220959,69959.0,69958.0,1.000924]
[1722252045519,1.36748617,69959.0,69958.0,1.000924]
[1722252046225,1.36748617,69959.0,69958.0,1.004924]
[1722252046433,1.35220959,69959.0,69958.0,1.004924]
[1722252047059,1.35220959,69959.0,69958.0,1.000924]
[1722252047060,1.30220959,69959.0,69958.0,1.000924]
[1722252047295,1.32764876,69959.0,69958.0,1.001924]
[1722252047494,1.30520959,69959.0,69958.0,1.001924]
[1722252047733,1.30520959,69959.0,69958.0,1.000924]
[1722252048121,1.23366604,69959.0,69958.0,1.000924]
[1722252049937,1.23366604,69959.0,69958.0,1.004924]
[1722252050094,1.23666604,69959.0,69958.0,1.005924]
[1722252050714,1.25910513,69959.0,69958.0,1.005924]
[1722252051057,1.23666604,69959.0,69958.0,1.005924]
[1722252051676,1.19956111,69959.0,69958.0,1.001924]
[1722252051813,0.60703617,69959.0,69958.0,1.000924]
[1722252052024,0.84074117,69959.0,69958.0,1.002924]
[1722252052233,0.93336583,69959.0,69958.0,1.002924]
[1722252053743,0.94210797,69959.0,69958.0,1.002924]
[1722252054384,0.96454619,69959.0,69958.0,1.002924]
[1722252055654,0.20015953,69959.0,69958.0,1.002924]
[1722252055881,0.50831036,69959.0,69958.0,1.002924]
[1722252056101,0.26131464,69959.0,69958.0,1.002924]
[1722252056337,0.49001964,69959.0,69958.0,1.002924]
[1722252056566,0.50940832,69959.0,69958.0,1.001924]
[1722252057013,0.50740832,69959.0,69958.0,1.000924]
[1722252057462,0.50940832,69959.0,69958.0,1.000924]
[1722252057915,0.28070332,69959.0,69958.0,1.000924]
[1722252058143,0.26131464,69959.0,69958.0,1.001924]
[1722252058571,0.14696264,69959.0,69958.0,1.083424]
[1722252058810,0.14396264,69959.0,69958.0,1.146924]
[1722252059025,0.14696264,69959.0,69958.0,1.146924]
[1722252059249,0.28375103,69959.0,69958.0,1.146924]
[1722252059460,0.16939903,69959.0,69958.0,1.146924]
[1722252059670,0.26131464,69959.0,69958.0,1.146924]
[1722252060157,0.3331848,69959.0,69958.0,1.146924]
[1722252061866,0.26131464,69959.0,69958.0,1.146924]
[1722252062300,0.26131464,69959.0,69958.0,1.000924]
[1722252062679,0.28375038,69959.0,69958.0,1.000924]
[1722252063078,0.25922819,69959.0,69958.0,1.000924]
[1722252065173,0.48793319,69959.0,69958.0,1.000924]
[1722252065759,0.51036908,69959.0,69958.0,1.000924]
[1722252066099,0.50836908,69959.0,69958.0,1.000924]
[1722252066359,0.50536908,69959.0,69958.0,1.000924]
[1722252066502,0.25514089,69959.0,69958.0,1.000924]
[1722252066704,0.37481745,69959.0,69958.0,1.000924]
[1722252067554,0.35238156,69959.0,69958.0,1.000924]
[1722252067747,0.35238156,69959.0,69958.0,1.007924]
[1722252068110,0.58108656,69959.0,69958.0,1.007924]
[1722252068811,0.80979156,69959.0,69958.0,1.007924]
[1722252069054,0.87529156,69959.0,69958.0,1.007924]
[1722252069260,0.89768182,69959.0,69958.0,1.007924]
[1722252069659,0.9201196,69959.0,69958.0,1.007924]
[1722252070265,0.6914146,69959.0,69958.0,1.007924]
[1722252070484,0.3972096,69959.0,69958.0,1.007924]
[1722252070681,0.60352434,69959.0,69958.0,1.007924]
[1722252070940,0.37481934,69959.0,69958.0,1.007924]
[1722252071284,0.35238156,69959.0,69958.0,1.007924]
[1722252071481,0.12367656,69959.0,69958.0,1.007924]
[1722252071686,0.12367656,69959.0,69958.0,1.071324]
[1722252071687,0.00932456,69959.0,69958.0,1.071324]
[1722252071997,0.12451656,69959.0,69958.0,1.071324]
[1722252072613,0.12451656,69959.0,69958.0,1.064324]
[1722252072614,0.12151656,69959.0,69958.0,1.064324]
[1722252073964,0.35022156,69959.0,69958.0,1.003924]
[1722252074172,0.35022156,69959.0,69958.0,1.000924]
[1722252074524,0.35022156,69959.0,69958.0,1.007924]
[1722252074730,0.37265782,69959.0,69958.0,1.007924]
[1722252075126,0.60136282,69959.0,69958.0,1.007924]
[1722252075667,0.37265782,69959.0,69958.0,1.007924]
[1722252075846,0.93270526,69959.0,69958.0,1.007924]
[1722252076047,0.62375242,69959.0,69958.0,1.007924]
[1722252076249,0.62375242,69959.0,69958.0,1.013924]
[1722252079362,0.62375242,69959.0,69958.0,1.006924]
[1722252079589,0.62375242,69959.0,69958.0,1.008924]
[1722252079590,0.70741449,69959.0,69958.0,1.008924]
[1722252079806,0.70941449,69959.0,69958.0,1.006924]
[1722252080029,0.70941449,69959.0,69958.0,1.013924]
[1722252080514,0.85245742,69959.0,69958.0,1.013924]
[1722252080998,0.96402752,69959.0,69958.0,1.013924]
[1722252081245,0.96402752,69959.0,69958.0,1.006924]
[1722252081246,1.01402752,69959.0,69958.0,1.006924]
[1722252081481,0.96402752,69959.0,69958.0,1.006924]
[1722252081976,0.98855148,69959.0,69958.0,1.006924]
[1722252082207,1.13358138,69959.0,69958.0,1.006924]
[1722252082433,1.08358138,69959.0,69958.0,1.006924]
[1722252083174,1.08355842,69959.0,69958.0,1.006924]
[1722252083627,1.11112216,69959.0,69958.0,1.006924]
[1722252083870,1.1109263,69959.0,69958.0,1.006924]
[1722252084827,1.39382569,69959.0,69958.0,0.49641642]
[1722252085072,1.39382569,69959.0,69932.0,0.057321]
[1722252085073,0.573975,69933.0,69932.0,0.057321]
[1722252085353,0.60528232,69933.0,69932.0,0.057321]
[1722252085613,0.002,69922.0,69920.0,0.1402]
[1722252085860,0.00474929,69933.0,69920.0,0.1402]
[1722252086105,0.002,69924.0,69920.0,0.1402]
[1722252086585,0.002,69921.0,69920.0,0.1402]
[1722252087072,0.00672027,69921.0,69920.0,0.1402]
[1722252087314,0.002,69921.0,69920.0,0.1402]
[1722252087559,0.00672027,69921.0,69920.0,0.1402]
[1722252087798,0.116414,69921.0,69920.0,0.1402]
[1722252088058,0.02916482,69921.0,69920.0,0.1402]
[1722252088305,0.0047192,69921.0,69920.0,0.1402]
[1722252088557,0.0047192,69921.0,69920.0,0.1462]
[1722252089049,0.0067192,69921.0,69920.0,0.1462]
[1722252089668,0.0067192,69921.0,69920.0,0.1402]
[1722252089785,0.0067192,69921.0,69920.0,0.1482]
[1722252090500,0.0077192,69921.0,69920.0,0.1552]
[1722252090700,0.003,69921.0,69920.0,0.1552]
[1722252091326,0.03017537,69921.0,69920.0,0.1552]
[1722252091527,0.02544566,69921.0,69920.0,0.1552]
[1722252091794,0.03017537,69921.0,69920.0,0.1552]
[1722252093309,0.02817537,69921.0,69920.0,0.1552]
[1722252093490,0.02344566,69921.0,69920.0,0.1552]
[1722252093893,0.001,69921.0,69920.0,0.1552]
[1722252094889,0.001,69921.0,69920.0,0.269616]
[1722252095097,0.001,69921.0,69920.0,0.1552]
[1722252096618,0.002,69924.0,69920.0,0.1482]
[1722252096819,0.002,69924.0,69920.0,0.1542]
[1722252097257,0.02444526,69924.0,69920.0,0.1542]
[1722252097428,0.002,69922.0,69920.0,0.1402]
[1722252097772,0.002,69922.0,69920.0,0.1612]
[1722252098002,0.02444526,69924.0,69920.0,0.1612]
[1722252098171,0.02444526,69924.0,69920.0,0.1482]
[1722252098373,0.02444526,69924.0,69920.0,0.1462]
[1722252098374,0.002,69922.0,69920.0,0.1462]
[1722252098783,0.002,69922.0,69920.0,0.1402]
[1722252099093,0.002,69922.0,69920.0,0.1512]
[1722252099378,0.002,69922.0,69920.0,0.1402]
[1722252099605,0.002,69921.0,69920.0,0.1402]
[1722252099837,0.002,69921.0,69920.0,0.1462]
[1722252100058,0.00794824,69921.0,69920.0,0.1462]
[1722252100245,0.002,69921.0,69920.0,0.006]
[1722252100455,0.00794824,69921.0,69920.0,0.006]
[1722252100570,0.002,69921.0,69920.0,0.006]
[1722252100927,0.002,69921.0,69920.0,0.008]
[1722252100928,0.13029913,69921.0,69920.0,0.008]
[1722252101128,0.002,69917.0,69916.0,0.0661]
[1722252101329,0.002,69919.0,69916.0,0.0661]
[1722252101530,0.00793878,69917.0,69916.0,0.0661]
[1722252101760,0.002,69917.0,69916.0,0.0661]
[1722252101943,0.00793878,69917.0,69916.0,0.0661]
[1722252102756,0.002,69913.0,69912.0,0.0602]
[1722252102912,0.002,69915.0,69912.0,0.0602]
[1722252103320,0.00593106,69914.0,69912.0,0.0602]
[1722252104498,0.02837886,69914.0,69912.0,0.0602]
[1722252104717,0.002,69913.0,69912.0,0.0602]
[1722252105112,0.00793075,69913.0,69912.0,0.0602]
[1722252105454,0.00593075,69913.0,69912.0,0.0602]
[1722252105661,0.002,69913.0,69912.0,0.0602]
[1722252105859,0.00593477,69913.0,69912.0,0.0602]
[1722252106066,0.002,69912.0,69910.0,0.0804]
[1722252106367,0.00593106,69911.0,69910.0,0.0804]
[1722252106921,0.002,69912.0,69909.0,0.008855]
[1722252107121,0.002,69910.0,69909.0,0.008855]
[1722252107300,0.00791329,69910.0,69909.0,0.008855]
[1722252107479,0.4000174,69910.0,69909.0,0.008855]
[1722252107667,0.6288824,69910.0,69909.0,0.008855]
[1722252108022,0.58899497,69910.0,69909.0,0.008855]
[1722252108402,0.01683297,69910.0,69909.0,0.008855]
[1722252108611,0.36012997,69910.0,69909.0,0.008855]
[1722252109180,0.3601301,69910.0,69909.0,0.008855]
[1722252109382,0.35121029,69910.0,69909.0,0.008855]
[1722252109798,0.37366112,69910.0,69909.0,0.008855]
[1722252111321,0.44772293,69910.0,69909.0,0.008855]
[1722252111517,0.44772293,69910.0,69909.0,0.010855]
[1722252111778,0.67658793,69910.0,69909.0,0.010855]
[1722252112118,0.90545293,69910.0,69909.0,0.010855]
[1722252113351,0.67658793,69910.0,69909.0,0.010855]
[1722252115481,0.90545293,69910.0,69909.0,0.010855]
[1722252115629,0.8830021,69910.0,69909.0,0.010855]
[1722252116629,0.9586021,69910.0,69909.0,0.010855]
[1722252116914,1.26415346,69910.0,69909.0,0.010855]
[1722252117100,1.49301846,69910.0,69909.0,0.010855]
[1722252117307,1.59301846,69910.0,69909.0,0.010855]
[1722252117477,1.60195123,69910.0,69909.0,0.010855]
[1722252117697,1.60195123,69910.0,69909.0,0.008855]
[1722252117876,1.62495123,69910.0,69909.0,0.008855]
[1722252118272,1.22454268,69910.0,69909.0,0.008855]
[1722252119033,1.34699751,69910.0,69909.0,0.008855]
[1722252119347,1.57586251,69910.0,69909.0,0.008855]
[1722252119835,1.57886251,69910.0,69909.0,0.008855]
[1722252120041,1.55640768,69910.0,69909.0,0.008855]
[1722252120254,1.55340768,69910.0,69909.0,0.008855]
[1722252120454,1.55640768,69910.0,69909.0,0.009855]
[1722252120641,1.55640768,69910.0,69909.0,0.012855]
[1722252121150,1.55640768,69910.0,69909.0,0.009855]
[1722252121357,1.55940768,69910.0,69909.0,0.010855]
[1722252121558,1.55640768,69910.0,69909.0,0.009855]
[1722252122010,1.45640768,69910.0,69909.0,0.009855]
[1722252122122,1.66300768,69910.0,69909.0,0.009855]
[1722252122734,1.43414268,69910.0,69909.0,0.009855]
[1722252122932,1.08058547,69910.0,69909.0,0.009855]
[1722252123156,1.08258547,69910.0,69909.0,0.009855]
[1722252123983,1.08958547,69910.0,69909.0,0.010855]
[1722252124565,1.08258547,69910.0,69909.0,0.009855]
[1722252124772,1.20584402,69910.0,69909.0,0.009855]
[1722252124983,1.21284402,69910.0,69909.0,0.010855]
[1722252126971,1.23529816,69910.0,69909.0,0.010855]
[1722252127391,1.28529816,69910.0,69909.0,0.010855]
[1722252128126,1.51116316,69910.0,69909.0,0.009855]
[1722252128421,1.50716316,69910.0,69909.0,0.009855]
[1722252128596,1.50716316,69910.0,69909.0,0.008855]
[1722252128965,1.51016316,69910.0,69909.0,0.009855]
[1722252130006,1.28129816,69910.0,69909.0,0.009855]
[1722252130807,1.10803961,69910.0,69909.0,0.009855]
[1722252131009,1.10803961,69910.0,69909.0,0.010855]
[1722252131211,1.11403961,69910.0,69909.0,0.010855]
[1722252136475,1.00438547,69910.0,69909.0,0.010855]
[1722252137211,1.08708547,69910.0,69909.0,0.010855]
[1722252137533,1.12240457,69910.0,69909.0,0.010855]
[1722252138245,1.22240457,69910.0,69909.0,0.010855]
[1722252138982,1.59356957,69910.0,69909.0,0.010855]
[1722252139210,1.61656957,69910.0,69909.0,0.010855]
[1722252139585,1.63902425,69910.0,69909.0,0.010855]
[1722252141060,1.61656957,69910.0,69909.0,0.010855]
[1722252143511,1.66284866,69910.0,69909.0,0.010855]
[1722252144492,1.76980676,69910.0,69909.0,0.010855]
[1722252144731,1.66284866,69910.0,69909.0,0.010855]
[1722252145835,1.61656957,69910.0,69909.0,0.010855]
[1722252146153,1.66285113,69910.0,69909.0,0.010855]
[1722252147932,1.6853062,69910.0,69909.0,0.010855]
[1722252148129,1.6854407,69910.0,69909.0,0.010855]
[1722252148530,1.64794646,69910.0,69909.0,0.010855]
[1722252148738,1.68547286,69910.0,69909.0,0.010855]
[1722252149128,1.66301779,69910.0,69909.0,0.010855]
[1722252149313,1.66301778,69910.0,69909.0,0.010855]
[1722252150429,1.09883368,69910.0,69909.0,0.010855]
[1722252150609,1.13353368,69910.0,69909.0,0.010855]
[1722252150976,1.23353368,69910.0,69909.0,0.010855]
[1722252152470,1.25598847,69910.0,69909.0,0.010855]
[1722252153320,1.23353368,69910.0,69909.0,0.010855]
[1722252153522,1.37663307,69910.0,69909.0,0.010855]
[1722252154101,1.27663307,69910.0,69909.0,0.010855]
[1722252154711,1.40534066,69910.0,69909.0,0.010855]
[1722252155753,1.1332135,69910.0,69909.0,0.010855]
[1722252155944,0.82219155,69910.0,69909.0,0.010855]
[1722252156402,0.84464595,69910.0,69909.0,0.010855]
[1722252156704,1.05105655,69910.0,69909.0,0.010855]
[1722252158237,0.82219155,69910.0,69909.0,0.010855]
[1722252158692,0.95101958,69910.0,69909.0,0.010855]
[1722252158899,0.06227985,69910.0,69909.0,0.075655]
[1722252159233,0.16777908,69910.0,69909.0,0.075655]
[1722252159514,0.05334708,69910.0,69909.0,0.075655]
[1722252159750,0.05334537,69910.0,69909.0,0.154955]
[1722252159934,0.05334537,69910.0,69909.0,0.153955]
[1722252159935,0.16177737,69910.0,69909.0,0.153955]
[1722252160149,0.16177737,69910.0,69909.0,0.152955]
[1722252160150,0.12725307,69910.0,69909.0,0.152955]
[1722252160352,0.06379706,69910.0,69909.0,0.152955]
[1722252161128,0.06879706,69910.0,69909.0,0.152955]
[1722252161746,0.06879666,69910.0,69909.0,0.152955]
[1722252162316,0.06879665,69910.0,69909.0,0.152955]
[1722252162747,0.06679665,69910.0,69909.0,0.350089]
[1722252162952,0.06679665,69910.0,69909.0,0.578957]
[1722252162953,0.03046958,69910.0,69909.0,0.578957]
[1722252163154,0.03346958,69910.0,69909.0,0.578957]
[1722252163325,0.02945169,69910.0,69909.0,0.235655]
[1722252163525,0.007,69910.0,69909.0,0.235655]
[1722252163756,0.007,69910.0,69909.0,0.350089]
[1722252163927,0.003,69910.0,69909.0,0.350089]
[1722252164306,0.005,69910.0,69909.0,0.350089]
[1722252164829,0.002,69910.0,69909.0,0.350089]
[1722252165211,0.003,69910.0,69909.0,0.350089]
[1722252165431,0.001,69910.0,69909.0,0.350089]
[1722252165670,0.02244898,69910.0,69909.0,0.348789]
[1722252166149,0.02244898,69910.0,69909.0,0.351789]
[1722252166380,0.02244898,69910.0,69909.0,0.154655]
[1722252166631,0.02244898,69910.0,69909.0,0.351789]
[1722252166890,0.002,69913.0,69910.0,0.1403]
[1722252167138,0.002,69916.0,69911.0,0.1403]
[1722252167388,0.002,69916.0,69910.0,0.114432]
[1722252167389,0.002,69916.0,69912.0,0.223]
[1722252167635,0.002,69916.0,69912.0,0.0827]
[1722252167835,0.114414,69922.0,69913.0,0.1403]
[1722252167986,0.0089181,69921.0,69913.0,0.1403]